Cogmind - Beta 13 @@@ ROGUE MODE // 2024.08.05 @ 00:56:58 Player: Syanka Result: Destroyed by H-61 Shepherd with Heavy Assault Cannon Performance ------------- Evolutions (3) 1500 Regions Visited (5) 1000 Robots Destroyed (138) 690 Value Destroyed (3615) 3615 Prototype IDs (8) 160 Alien Tech Used (0) 0 Bonus (631) 631 TOTAL SCORE: 7596 Bonus ------- High Alert Combat Kills 319 Follower Combat Kills 455 Friendly Fire -143 Cogmind --------- Core Integrity 0/700 Matter 145/300 Energy 40/100 System Corruption 2% Temperature Warm (147) Movement Core (350) Ox6 Location -7/Factory Parts ------- > --- POWER (1) -------- (None) > --- PROPULSION (4) --- (None) > --- UTILITY (6) ------ Large Storage Unit > --- WEAPON (2) ------- (None) > --- INVENTORY (15) --- Scrap Engine Armor Integrity Analyzer Hacking Suite Hacking Suite Hacking Suite Tractor Beam Heavy Laser Heavy Laser Heavy Hammer Peak State ------------ > --- POWER ------------ Enhanced Nuclear Core > --- PROPULSION ------- Light Treads Light Treads Light Treads Advanced Treads > --- UTILITY ---------- Improved Cooling System Large Storage Unit Improved Targeting Computer Core Analyzer Improved Light Armor Plating Improved Shield Generator > --- WEAPON ----------- Advanced Assault Cannon Advanced Assault Cannon > --- INVENTORY -------- Enhanced Nuclear Core Enhanced Nuclear Core Enhanced Nuclear Core Scrap Engine Hacking Suite Hacking Suite Hacking Suite Improved EM Shotgun Advanced Beam Cannon Advanced Beam Cannon Minigun Minigun Precision Grenade Launcher Heavy Hammer [Rating: 43] Favorites ----------- Power Heavy Ion Engine Engine Heavy Ion Engine Power Core Enhanced Nuclear Core Propulsion Light Treads Treads Light Treads Utility Heat Sink Device Heat Sink Storage Large Storage Unit Processor Improved Targeting Computer Protection Medium Armor Plating Weapon Advanced Beam Cannon Energy Gun Spread Laser Energy Cannon Advanced Beam Cannon Ballistic Gun Minigun Ballistic Cannon Advanced Assault Cannon Launcher Grenade Launcher Impact Weapon Heavy Hammer Build | -11 -10 -9 -9 -9 -7 ------- Run | Yrd Mat Mat Sto Rec Fac Slots Evolved 6 | . . 2 . . 4 Power . | . . . . . . Propulsion 2 | . . . . . 2 Utility 4 | . . 2 . . 2 Weapon . | . . . . . . Parts Attached 166 | 8 27 41 60 1 29 Power 16 | 1 4 3 3 . 5 Engine 12 | 1 4 3 3 . 1 Core 4 | . . . . . 4 Reactor . | . . . . . . Propulsion 31 | 2 5 6 14 . 4 Treads 31 | 2 5 6 14 . 4 Leg . | . . . . . . Wheel . | . . . . . . Hover . | . . . . . . Flight . | . . . . . . Utility 42 | 2 7 18 5 1 9 Device 23 | 1 5 10 2 1 4 Storage 3 | 1 2 . . . . Processor 3 | . . 1 . . 2 Hackware . | . . . . . . Protection 13 | . . 7 3 . 3 Artifact . | . . . . . . Weapon 77 | 3 11 14 38 . 11 Energy Gun 23 | 2 6 10 5 . . Energy Cannon 25 | . 3 1 18 . 3 Ballistic Gun 4 | 1 . . 1 . 2 Ballistic Cannon 3 | . . . . . 3 Launcher 12 | . 2 3 4 . 3 Special Weapon . | . . . . . . Impact Weapon 10 | . . . 10 . . Slashing Weapon . | . . . . . . Piercing Weapon . | . . . . . . Special Melee Weapon . | . . . . . . Unidentified Prototypes 8 | . . 2 4 . 2 Corrupted Parts 1 | . 1 . . . . System Corruption 1 | . 1 . . . . Parts Lost 18 | . 1 . 1 . 16 Power 1 | . . . . . 1 Propulsion 4 | . . . . . 4 Utility 7 | . . . 1 . 6 Weapon 6 | . 1 . . . 5 Highest Loss Streak 15 | . 1 . 1 . 15 To Critical Strikes . | . . . . . . Average Slot Usage (%) 99 | . 99 99 99 100 97 Engine 10 | . 13 10 11 11 2 Treads 23 | . 27 22 22 22 29 Device 20 | . 14 20 22 22 20 Storage 10 | . 14 11 11 11 7 Processor 1 | . . . . . 9 Protection 8 | . . 11 10 11 6 Energy Gun 8 | . 15 20 2 . . Energy Cannon 12 | . 11 1 18 22 10 Naked Turns . | . . . . . . Heaviest Build 51 | 13 31 43 46 46 51 Greatest Support 82 | 40 40 40 40 40 82 Greatest Overweight (x) 1 | . . 1 1 1 1 Average Overweight (x) . | . . . . 1 . Largest Inventory Capacity 15 | 8 15 15 15 15 15 Average Capacity 14 | 7 13 15 15 15 15 Most Carried 15 | 8 15 15 15 15 15 Average Carried 13 | 5 10 14 14 14 14 Final Capacity 15 | 8 15 15 15 15 15 Final Carried 15 | 8 15 14 15 15 10 Class Distribution -------------------- 39% | Scavenger-Mutant 35% | Mutant 24% | Commander-Mutant Dominant Class ---------------- Scavenger-Mutant | -10/Materials Scavenger-Mutant | -9/Materials Mutant | -9/Storage Commander-Mutant | -9/Recycling Scavenger-Mutant | -7/Factory Resources | -11 -10 -9 -9 -9 -7 ----------- Run | Yrd Mat Mat Sto Rec Fac Matter Collected 2372 | 346 309 495 724 30 468 Remotely . | . . . . . . Salvage Created 4483 | 205 610 1052 1585 . 1031 Parts 307 | 19 40 81 114 . 53 Haulers Intercepted 13 | . 1 5 5 . 2 Recyclers Shooed 3 | . 2 . 1 . . Parts Field Recycled . | . . . . . . Retrieved Matter . | . . . . . . Parts Self-Destructed . | . . . . . . Prevented . | . . . . . . Kills | -11 -10 -9 -9 -9 -7 ------- Run | Yrd Mat Mat Sto Rec Fac Combat Hostiles Destroyed 89 | . 12 26 32 . 19 Guns 25 | . 4 19 2 . . Cannons 38 | . 4 . 22 . 12 AOE 24 | . 4 7 8 . 5 Classes Destroyed 16 | 3 4 4 1 . 4 Worker 4 | 1 . 2 . . 1 Builder 3 | . . 1 1 . 1 Tunneler 6 | 5 . 1 . . . Hauler 13 | . 1 5 5 . 2 Recycler 8 | 1 2 1 1 . 3 Operator 8 | . 3 2 3 . . Watcher 6 | . . 3 2 . 1 Swarmer 21 | . 3 7 7 . 4 Grunt 40 | . 9 12 14 . 5 Brawler 2 | . . 1 . . 1 Protector 1 | . . . 1 . . Sentry 19 | . . 6 11 . 2 Specialist 4 | . . . . . 4 Hunter 1 | . . . . . 1 Programmer 1 | . . . . . 1 Heavy 1 | . . . . . 1 Best Kill Streak 10 | 2 5 5 10 . 4 Combat Bots Only 5 | . 4 5 5 . 3 Max Kills in Single Turn 3 | 1 3 3 3 . 2 Gunslinging . | . . . . . . Exploded 3 | . 3 3 3 . 1 Melee . | . . . . . . Uniques/NPCs Destroyed . | . . . . . . Combat | -11 -10 -9 -9 -9 -7 -------- Run | Yrd Mat Mat Sto Rec Fac Hostile Shots Fired 529 | . 38 98 128 . 265 Missed 164 | . 14 22 47 . 81 Damage Taken 5290 | . 326 879 1117 . 2968 Core 1149 | . 87 130 203 . 729 Absorbed by Shields 507 | . . 107 . . 400 Regen/Repaired (Parts) 322 | . . 74 106 . 142 Core Remaining (%) 60 | 100 65 . . 16 . Volleys Fired 318 | 14 42 88 97 . 77 Largest 2 | 2 2 2 2 . 2 Hottest 136 | 90 100 130 136 . 136 Shots Fired 595 | 28 82 170 181 . 134 Gun 274 | 28 59 146 30 . 11 Cannon 290 | . 20 18 138 . 114 Launcher 31 | . 3 6 13 . 9 Special . | . . . . . . Kinetic 51 | . . . . . 51 Thermal 438 | 14 27 155 168 . 74 Explosive 31 | . 3 6 13 . 9 Electromagnetic 75 | 14 52 9 . . . Robot Hit Streak 14 | 6 12 12 10 . 14 Robot Miss Streak 8 | 1 3 8 5 . 2 Penetration Max . | . . . . . . Secondary Targets 2 | . . 2 . . . Max Gunslinging Chain 1 | . . 1 . . . Shots Hit Robots 394 | 18 44 139 99 . 94 Core Hits 282 | 8 23 146 60 . 45 Critical Kills 1 | . . . . . 1 Critical Parts Destroyed . | . . . . . . Critical Strikes 6 | 1 1 1 1 . 2 Burn 2 | . 1 . 1 . . Meltdown 1 | . . . . . 1 Blast 1 | . . . . . 1 Corrupt 2 | 1 . 1 . . . Melee Attacks 36 | . . . 36 . . Impact 36 | . . . 36 . . Slashing . | . . . . . . Piercing . | . . . . . . Sneak Attacks . | . . . . . . Combat Hostiles . | . . . . . . Follow-up Attacks . | . . . . . . Damage Inflicted 9359 | 263 1024 2228 3041 8 2795 Guns 2756 | 263 446 1633 280 . 134 Cannons 3949 | . 231 249 1620 . 1849 Explosions 2591 | . 340 336 1128 . 787 Melee . | . . . . . . Ramming 63 | . 7 10 13 8 25 Kinetic 762 | . . . . . 762 Thermal 5502 | 101 439 1841 1900 . 1221 Explosive 2445 | . 225 305 1128 . 787 Electromagnetic 587 | 162 353 72 . . . Impact . | . . . . . . Slashing . | . . . . . . Piercing . | . . . . . . Highest Corruption 2 | . 1 . . . 2 Average Corruption 1 | . 1 . . . 1 Corruption Purged . | . . . . . . Corruption Blocked 8 | . . . . . 8 Effects 19 | . 9 . . . 10 Message Errors 4 | . 1 . . . 3 Matter Fused 4 | . 2 . . . 2 Heat Flow Errors 2 | . 1 . . . 1 Energy Discharges 4 | . 2 . . . 2 Data Loss (minor) 3 | . 2 . . . 1 Misfires 2 | . 1 . . . 1 Overload Shots . | . . . . . . Overflow Damage 117 | . 22 . 49 . 46 Projectiles 63 | . . . 17 . 46 Explosions 54 | . 22 . 32 . . Melee . | . . . . . . Knockbacks 4 | . . . . . 4 Impact . | . . . . . . Kinetic 4 | . . . . . 4 Secondary . | . . . . . . Self-Inflicted Damage 317 | . 56 . 87 . 174 Shots 8 | . 1 . 2 . 5 Rammed 23 | . 3 3 6 6 5 Targets Rammed 26 | . 3 4 7 6 6 Kicked . | . . . . . . Crushed 3 | . . 1 1 . 1 Highest Temperature 354 | 120 234 354 21 . 165 Average Temperature 64 | 48 49 81 6 . 98 Received Heat Transfer 1185 | . 135 332 339 . 379 Effects 2 | . . 2 . . . Energy Bleed 1 | . . 1 . . . Matter Decay 1 | . . 1 . . . Siege Activations . | . . . . . . Robots Corrupted . | . . . . . . Combat Hostiles . | . . . . . . Parts Fried . | . . . . . . Impact Corruptions . | . . . . . . Robots Melted 2 | . . . . . 2 Combat Hostiles 2 | . . . . . 2 Parts Melted 14 | . 2 1 5 . 6 Heat Transferred 9594 | 296 914 2686 3552 . 2146 Parts Sabotaged . | . . . . . . Parts Stolen . | . . . . . . Parts Stripped . | . . . . . . Power Chain Reactions 2 | . 1 1 . . . Alert | -11 -10 -9 -9 -9 -7 ------- Run | Yrd Mat Mat Sto Rec Fac Peak Influence 1019 | 35 394 464 1019 516 430 Initial 384 | . 22 24 168 384 22 Average 339 | 15 159 274 654 249 165 Maximum Alert Level 3 | . 1 2 3 2 2 Low Security (%) 40 | 100 65 41 6 49 60 Level 1 27 | . 34 35 14 25 37 Level 2 16 | . . 22 25 25 1 Level 3 15 | . . . 53 . . Level 4 . | . . . . . . Level 5 . | . . . . . . High Security . | . . . . . . Max Security . | . . . . . . Squads Dispatched 23 | . 2 4 6 . 11 Investigation 5 | . . 2 1 . 2 Extermination 1 | . . . . . 1 Reinforcement 14 | . 2 2 3 . 7 Assault 3 | . . . 2 . 1 Garrison . | . . . . . . Intercept . | . . . . . . Searches Triggered . | . . . . . . Construction Impeded 2 | . . . . . 2 Haulers Reinforced 1 | . . . . . 1 Active Scanning Responses . | . . . . . . Cargo Convoy Interrupts 1 | . . . . . 1 Stealth | -11 -10 -9 -9 -9 -7 --------- Run | Yrd Mat Mat Sto Rec Fac Distress Signals 8 | . 2 2 3 . 1 Communications Jammed . | . . . . . . Distress Signals . | . . . . . . Times Spotted 141 | . 20 40 49 1 31 Peak Tracking Total 8 | . 5 5 8 . 6 Tactical Retreats 6 | . . . 3 . 3 Traps | -11 -10 -9 -9 -9 -7 ------- Run | Yrd Mat Mat Sto Rec Fac Traps Triggered 5 | . 3 1 1 . . Indirectly . | . . . . . . Trap Hack Attempts . | . . . . . . Triggered . | . . . . . . Disarmed . | . . . . . . Reprogrammed . | . . . . . . Reused . | . . . . . . Traps Extracted . | . . . . . . Installed . | . . . . . . Triggered 1 | . . . . . 1 Machines | -11 -10 -9 -9 -9 -7 ---------- Run | Yrd Mat Mat Sto Rec Fac Machines Disabled 13 | . 5 . 7 . 1 Max in Single Turn 3 | . 3 . 2 . 1 Garrison Access 2 | . . . 1 . 1 Machines Repaired . | . . . . . . Machines Dismantled . | . . . . . . Machines Sabotaged . | . . . . . . Overloaded Fab Kills . | . . . . . . Hacking | -11 -10 -9 -9 -9 -7 --------- Run | Yrd Mat Mat Sto Rec Fac Machines Accessed 17 | . 1 6 8 . 2 Terminals 9 | . 1 3 5 . . Fabricators . | . . . . . . Repair Stations 6 | . . 2 2 . 2 Recycling Units . | . . . . . . Scanalyzers 1 | . . 1 . . . Garrison Access 1 | . . . 1 . . Total Hacks 43 | . 3 18 16 . 6 Successful 20 | . 2 9 6 . 3 Failed 23 | . 1 9 10 . 3 Catastrophic 5 | . . 2 3 . . Database Lockouts . | . . . . . . Manual 8 | . 3 5 . . . Terminals 17 | . 3 5 9 . . Fabricators . | . . . . . . Repair Stations 20 | . . 9 5 . 6 Recycling Units . | . . . . . . Scanalyzers 4 | . . 4 . . . Garrison Access 2 | . . . 2 . . Terminal Hacks 4 | . 2 . 2 . . Robot Analysis 2 | . 2 . . . . Open Door 1 | . . . 1 . . Locate Traps 1 | . . . 1 . . Fabricator Hacks . | . . . . . . Repair Station Hacks 13 | . . 7 3 . 3 Scan Component 8 | . . 4 2 . 2 Repair 5 | . . 3 1 . 1 Recycling Unit Hacks . | . . . . . . Scanalyzer 2 | . . 2 . . . Insert Component 1 | . . 1 . . . Analyze 1 | . . 1 . . . Garrison Access Hacks 1 | . . . 1 . . Seal Access 1 | . . . 1 . . Unauthorized Hacks . | . . . . . . Terminals . | . . . . . . Fabricators . | . . . . . . Repair Stations . | . . . . . . Recycling Units . | . . . . . . Scanalyzers . | . . . . . . Garrison Access . | . . . . . . Data Cores Recovered . | . . . . . . Used . | . . . . . . Hacking Detections 14 | . 1 6 5 . 2 Full Trace Events 4 | . . 1 2 . 1 Feedback Events . | . . . . . . Feedback Blocked . | . . . . . . Robot Schematics Acquired . | . . . . . . Robots Built . | . . . . . . Authchips . | . . . . . . Time . | . . . . . . Total Robot Build Rating . | . . . . . . Part Schematics Acquired 1 | . . 1 . . . Parts Built . | . . . . . . Authchips . | . . . . . . Time . | . . . . . . Total Part Build Rating . | . . . . . . Parts Repaired 5 | . . 3 1 . 1 Time 154 | . . 84 32 . 38 Parts Recycled . | . . . . . . Recycled Matter . | . . . . . . Retrieved Matter . | . . . . . . Retrieved Components . | . . . . . . Parts Scanalyzed 1 | . . 1 . . . Part Schematics Acquired 1 | . . 1 . . . Parts Damaged . | . . . . . . Bothacking | -11 -10 -9 -9 -9 -7 ------------ Run | Yrd Mat Mat Sto Rec Fac Used RIF Installer . | . . . . . . Robots Hacked . | . . . . . . Non-combat . | . . . . . . Combat . | . . . . . . Robot Hacks Applied . | . . . . . . Relay Couplers Released 2 | . . . . . 2 Machine Destruction 2 | . . . . . 2 Fabnet Peak Effective % . | . . . . . . Robots Rewired . | . . . . . . Allies Hacked . | . . . . . . Hacks Repelled . | . . . . . . Allies | -11 -10 -9 -9 -9 -7 -------- Run | Yrd Mat Mat Sto Rec Fac Total Allies 12 | . . . 12 . . Largest Group 12 | . . . 12 11 11 Highest-Rated Group 150 | . . . 150 142 142 Highest-Rated Ally 31 | . . . 31 31 31 Total Orders . | . . . . . . Ally Attacks 62 | . . . 25 7 30 Total Damage 879 | . . . 404 125 350 Kills 14 | . . . 6 4 4 Allies Corrupted . | . . . . . . Allies Melted 1 | . . . . . 1 Intel | -11 -10 -9 -9 -9 -7 ------- Run | Yrd Mat Mat Sto Rec Fac Robot Analysis Total 2 | . 2 . . . . Derelict Logs Recovered . | . . . . . . Drone Launches . | . . . . . . Drone Recoveries . | . . . . . . Exploration | -11 -10 -9 -9 -9 -7 ------------- Run | Yrd Mat Mat Sto Rec Fac Turns Passed 10474 | 238 1508 2644 2966 1587 1531 Spaces Moved 4250 | 118 717 1066 997 637 715 Core 11 | 11 . . . . . Treads 4239 | 107 717 1066 997 637 715 Legs . | . . . . . . Wheels . | . . . . . . Hover . | . . . . . . Flight . | . . . . . . Fastest Speed 50 | 50 160 160 160 240 155 Average Speed 197 | 149 160 198 231 240 158 Slowest Speed 240 | 160 160 240 240 240 225 Overloaded Moves . | . . . . . . Propulsion Burnouts . | . . . . . . Robots Hopped . | . . . . . . Cave-ins Triggered . | . . . . . . Exploration Rate (%) 65 | 7 91 79 95 97 22 Regions Visited 5 Branch Regions 2 Pre-discovered Areas . | . . . . . . Known Exits Taken 1 | . . 1 . . . Unknown Exits Taken 4 | 1 1 . 1 1 . Scrap Searched . | . . . . . . Spaces Dug 17 | . 6 . 11 . . Terrain Destroyed 254 | . 36 36 126 . 56 Melee 11 | . . . 11 . . Projectile 12 | . . . . . 12 AOE 231 | . 36 36 115 . 44 Terrain Rammed . | . . . . . . Walls Destroyed . | . . . . . . Machines Disabled . | . . . . . . Actions | -11 -10 -9 -9 -9 -7 --------- Run | Yrd Mat Mat Sto Rec Fac Total 5661 | 147 993 1429 1414 688 990 Wait 664 | . 164 182 166 27 125 Move 4245 | 117 716 1065 996 636 715 Hop . | . . . . . . Pick Up 74 | 8 21 16 13 1 15 Fast Attach 35 | 7 7 6 8 . 7 Attach 14 | . 1 2 . . 11 Detach 2 | . . . 1 . 1 Swap 117 | 1 19 33 52 1 11 Drop 115 | . 20 33 38 2 22 Fire 318 | 14 42 88 97 . 77 Melee 36 | . . . 36 . . Ram . | . . . . . . Kick . | . . . . . . Crush 26 | . 3 4 7 6 6 Escape Stasis . | . . . . . . Rewire 15 | . . . . 15 . Trap . | . . . . . . Miscellaneous . | . . . . . . Route ------- -11/Scrapyard -10/Materials (discovered 4 exits: *Mat x3 / [*Min]) -9/Materials (discovered 5 exits: *Mat x2 / *Min / *Sto x2) -9/Storage (discovered 2 exits: *Mat / [*Rec]) -9/Recycling -7/Factory (discovered 2 exits: [*Fac] / [*Low]) History --------- Turn | Location | Event 51 | -11/Scrapyard | Discovered new exit (range 16) 239 | -11/Scrapyard | Entered Materials 326 | -10/Materials | Build established: Mutant 725 | -10/Materials | Discovered new exit (range 15) 897 | -10/Materials | Build established: Scavenger-Mutant 979 | -10/Materials | Discovered new exit (range 10) 1000 | -10/Materials | Derelicts attacked the area 1398 | -10/Materials | Discovered new exit (range 16) 1444 | -10/Materials | Discovered new exit (range 15) 1747 | -10/Materials | Entered another Materials area 1747 | -9/Materials | Evolved 2 slots: Utility x2 2005 | -9/Materials | Discovered new exit (range 5) 2311 | -9/Materials | Repaired EM Pulse Gun 2344 | -9/Materials | Repaired Shield Generator 2371 | -9/Materials | Repaired Heat Sink 2649 | -9/Materials | Discovered new exit (range 8) 2983 | -9/Materials | Discovered new exit (range 16) 3191 | -9/Materials | Discovered new exit (range 16) 4105 | -9/Materials | Discovered new exit (range 16) 4163 | -9/Materials | Identified exit to Materials 4221 | -9/Materials | Build established: Mutant 4339 | -9/Materials | Identified exit to Storage 4365 | -9/Materials | Identified exit to Mines 4391 | -9/Materials | Entered Storage 5364 | -9/Storage | Discovered exit to Materials (range 7) 5656 | -9/Storage | Core integrity fell below 50% 5898 | -9/Storage | Discovered new exit (range 4) 6227 | -9/Storage | Core integrity fell below 20% 6309 | -9/Storage | Repaired Med. Armor Plating 6501 | -9/Storage | Met a pair of Derelict thieves 6968 | -9/Storage | Assisted by bots powering up and referring to "LRC-V3" 7278 | -9/Storage | Build established: Commander-Mutant 7357 | -9/Storage | Entered Recycling 7357 | -9/Recycling | Accompanied by 11 allies 7360 | -9/Recycling | Found Scrap Engine 7692 | -9/Recycling | Discovered new exit (range 16) 8944 | -9/Recycling | Entered Factory 8944 | -7/Factory | Accompanied by 11 allies 8944 | -7/Factory | Evolved 4 slots: Propulsion x2, Utility x2 9036 | -7/Factory | Discovered new exit (range 8) 9075 | -7/Factory | Lost 3 allies 9687 | -7/Factory | Lost 5 allies 9941 | -7/Factory | Cargo convoy interrupted 9997 | -7/Factory | Build established: Scavenger-Mutant 10038 | -7/Factory | Repaired Imp. Light Armor Plating 10392 | -7/Factory | Discovered new exit (range 8) 10455 | -7/Factory | Core integrity fell below 50% 10468 | -7/Factory | Core integrity fell below 20% 10475 | -7/Factory | Destroyed by H-61 Shepherd with Heavy Assault Cannon Last Messages --------------- 10459_ K-01 Serf collects debris. 10459_ Penetrated by Slug. 10460_ The unstable cave ceiling collapses. 10460_ Adv. Treads destroyed. 10460_ Imp. Targeting Computer destroyed. 10462_ U-05 Engineer lays Concrete. 10464_ K-01 Serf collects debris. 10465_ Penetrated by Slug. 10465_ Imp. Cooling System destroyed. 10465_ Knocked back. 10465_ U-05 Engineer builds a Wall. 10468_ K-01 Serf collects debris. 10469_ U-05 Engineer lays Concrete. 10470_ U-05 Engineer builds a Wall. 10471_ K-01 Serf collects debris. 10472_ U-05 Engineer builds a Wall. 10475_ The unstable cave ceiling collapses. 10475_ U-05 Engineer lays Concrete. 10475_ Adv. Beam Cannon destroyed. [Achievement: Back For More] Map ----- +----------------------------------------------------+ | ???????????????#???# ????????????????# # | | ???????????????????#"""????????????????# # | | ???????????????????#"""????????????????# # | | ???????????????????????????????????????# # | | ???????????????????????????????????????# #! | | ??????????????????????????##?# ????????# %+! | | ????????????????????????? ?# /????+ #* | | ?????????????????????????" ?#] #% # | | ???????????????????# ????" !?# # %* # | | ???????????????????+ """" ????######## # | | ???????????????????# """" ????# # | | ???????????????????# ????# ##### | | ???????????????????# #???# #???? | | ???????????????????? ##### #???? | | ????????????????????? ## % #???? | | ?????????????????????## ######### ########???? | | ?????????????????????#% u #u ##?????????? | | ?????????????????????### ! r #??????????? | | ?????????????# ##### *!!! [%% #??????????? | | ?????????????# < / %[= #% #??????????? | | ?????????????# #####% %] = ! ######?????? | | ??????????????????????#%% % ; ???? | | ??????????????????????# g"G * %# #??????????? | | ??????????????????????##g""YH= % #??????????? | | ??????????????????????## * g #??????????? | | ??????????????????????# @% % u # ""??????? | | ??????????????????# ; # ""??????? | | ??????????????????## #### + ????????? | | ????????????????????????##### # ?????????? | | ?????????????????????????????## # #??????????? | | ???????????????????????????????## #??????????? | | ????????????????????????????????# #??????????? | | ????????????????????????????????# #??????????? | | ????????????????????????????????# #??????????? | | ????????????????????????????????# #??????????? | | ????????????????????????????????? ???????????? | | ??????????????????????????????????? ???????????? | | ?????????????????????????????????????????????????? | | ?????????????????????????????????????????????????? | | ?????????????????????????????????????????????????? | | ?????????????????????????????????????????????????? | | ?????????????????????????????????????????????????? | | ?????????????????????????????????????????????????? | | ?????????????????????????????????????????????????? | | ?????????????????????????????????????????????????? | | ?????????????????????????????????????????????????? | | ?????????????????????????????????????????????????? | | ?????????????????????????????????????????????????? | | ?????????????????????????????????????????????????? | | ?????????????????????????????????????????????????? | +----------------------------------------------------+ Best States ------------- Heat Dissipation 83 Energy Generation 17 Energy Capacity 300 Matter Stores 300 Matter Capacity 300 Sight Range 16 Terrain Scan Density 10 Armor Coverage 300 Evasion (%) 40 Targeting Accuracy 6 Core Analysis 6 Recoil Reduction 4 Item Schematics ----------------- Hacking Suite | -9/Materials | Scanalyzed Robot Schematics ------------------ None Fabricated ------------ Nothing Alien Tech Used ----------------- None Achievements -------------- Back For More Challenges ------------ None Game ------ Seed MultitargetingIonInjector Manual? 0 Play Time 01:01:32 Cumulative 70.1 hours Start 2024.08.04 @ 23:50:28 End 2024.08.05 @ 00:56:58 Sessions 1 Manual Loads 0 Difficulty Rogue Special Mode None Game No. 50 Rogue 37 Adventurer 13 Explorer 0 Win Type - Total 0 Types 0/0/0/0/0/0/0/0/0 Lore% 30 Gallery% 44 Achievement% 37 Wizard Run 0 Options --------- Layout 2 ASCII 0 Keyboard 1 Movement Numpad Keybinds 0 Fullscreen 2 Font 16/Swanston Map View 55x47 Zoom Use 0% Tactical HUD 1 Map Filters NONE Filters NONE Steam 0 RUN: 0758c1df-72e7-4612-ac6f-a0f16aee1ce4